fUSD/lending_fUSD_20260428
["ID","MTS","AMOUNT","RATE_DAILY","PERIOD"]
[421288720,1777354231904,-1262.346,9.547e-05,2]
[421288721,1777354231916,-67198.15409254,9.547e-05,2]
[421288722,1777354231927,-1149.99016759,9.547e-05,2]
[421288739,1777354239624,-239.79574545,9.546e-05,2]
[421288740,1777354239634,-500.0,9.546e-05,2]
[421288741,1777354239644,-348.56890301,9.546e-05,2]
[421288742,1777354239653,-500.0,9.546e-05,2]
[421288743,1777354239662,-500.0,9.546e-05,2]
[421288744,1777354239671,-224.36766772,9.546e-05,2]
[421288745,1777354239681,-500.0,9.546e-05,2]
[421288746,1777354239691,-500.0,9.546e-05,2]
[421288747,1777354239700,-500.0,9.546e-05,2]
[421288748,1777354239709,-144.26768382,9.546e-05,2]
[421288749,1777354239734,-355.73231618,9.546e-05,2]
[421288750,1777354239744,-530.90958568,9.546e-05,2]
[421288751,1777354239753,-500.0,9.546e-05,2]
[421288752,1777354239762,-64.16121206,9.546e-05,2]
[421288753,1777354239799,-435.83878794,9.546e-05,2]
[421288754,1777354239808,-454.66572892,9.546e-05,2]
[421288755,1777354239817,-500.0,9.546e-05,2]
[421288756,1777354239827,-500.0,9.546e-05,2]
[421288757,1777354239836,-500.0,9.546e-05,2]
[421288758,1777354239846,-500.0,9.546e-05,2]
[421288759,1777354239855,-500.0,9.546e-05,2]
[421288760,1777354239864,-500.0,9.546e-05,2]
[421288761,1777354239874,-500.0,9.546e-05,2]
[421288762,1777354239883,-500.0,9.546e-05,2]
[421288763,1777354239892,-500.0,9.546e-05,2]
[421288764,1777354239901,-500.0,9.546e-05,2]
[421288765,1777354239911,-500.0,9.546e-05,2]
[421288766,1777354239920,-500.0,9.546e-05,2]
[421288767,1777354239930,-500.0,9.546e-05,2]
[421288768,1777354239939,-500.0,9.546e-05,2]
[421288769,1777354239949,-500.0,9.546e-05,2]
[421288770,1777354239958,-500.0,9.546e-05,2]
[421288771,1777354239967,-500.0,9.546e-05,2]
[421288772,1777354239976,-500.0,9.546e-05,2]
[421288773,1777354239986,-500.0,9.546e-05,2]
[421288774,1777354239996,-500.0,9.546e-05,2]
[421288775,1777354240005,-500.0,9.546e-05,2]
[421288776,1777354240015,-500.0,9.546e-05,2]
[421288777,1777354240025,-500.0,9.546e-05,2]
[421288778,1777354240034,-500.0,9.546e-05,2]
[421288779,1777354240044,-500.0,9.546e-05,2]
[421288780,1777354240054,-500.0,9.546e-05,2]
[421288781,1777354240063,-500.0,9.546e-05,2]
[421288782,1777354240072,-500.0,9.546e-05,2]
[421288783,1777354240082,-500.0,9.546e-05,2]
[421288784,1777354240091,-500.0,9.546e-05,2]
[421288785,1777354240101,-500.0,9.546e-05,2]
[421288786,1777354240111,-500.0,9.546e-05,2]
[421288787,1777354240120,-500.0,9.546e-05,2]
[421288788,1777354240130,-500.0,9.546e-05,2]
[421288789,1777354240139,-592.98407456,9.546e-05,2]
[421288790,1777354240148,-500.0,9.546e-05,2]
[421288791,1777354240157,-33516.86015268,9.547e-05,2]
[421288792,1777354240169,-273.05334531,9.547e-05,2]
[421288793,1777354240180,-4636.4,9.547e-05,2]
[421288794,1777354240191,-38705.1093591,9.547e-05,2]
[421288795,1777354240202,-18964.6820649,9.547e-05,2]
[421288796,1777354240212,-19427.47287327,9.547e-05,2]
[421288797,1777354240223,-1979.65645078,9.547e-05,2]
[421288798,1777354240234,-74072.05673907,9.547e-05,2]
[421288799,1777354240245,-3526.75,9.547e-05,2]
[421288800,1777354240256,-3046.82868942,9.547e-05,2]
[421288801,1777354240267,-3114.16252253,9.547e-05,2]
[421288802,1777354240278,-649.29216344,9.547e-05,2]
[421288803,1777354240289,-2565.98624479,9.547e-05,2]
[421288804,1777354240300,-3217.63065592,9.547e-05,2]
[421288805,1777354240311,-846.22880393,9.547e-05,2]
[421288806,1777354240323,-272.24010028,9.547e-05,2]
[421288807,1777354240334,-3575.413935,9.547e-05,2]
[421288808,1777354240346,-439.25627992,9.547e-05,2]
[421288809,1777354240357,-66848.77889375,9.547e-05,2]
[421288810,1777354240369,-77830.68235104,9.547e-05,2]
[421288811,1777354240379,-2635.1277,9.647e-05,2]
[421288812,1777354240388,-23411.6856,9.647e-05,2]
[421288813,1777354240397,-385.12,9.699e-05,2]
[421288814,1777354240407,-2000.0,9.7e-05,2]
[421288815,1777354240417,-1978.15,9.712e-05,2]
[421288816,1777354240426,-9784.9,9.712e-05,2]
[421288817,1777354240436,-11743.54163213,9.747e-05,2]
[421288818,1777354240447,-2207.2159203,9.747e-05,2]
[421288819,1777354240459,-458.87313864,9.747e-05,2]
[421289055,1777354242708,-628.43809262,9.747e-05,2]
[421289058,1777354242719,-2619.9222051,9.747e-05,2]
[421289064,1777354242767,-972.75928036,9.747e-05,2]
[421289131,1777354245767,-477.9844,9.647e-05,2]
[421289132,1777354245776,-802.3255978,9.8e-05,2]
[421289133,1777354246206,-540.74393397,9.8e-05,2]
[421289134,1777354246218,-370.45,9.8e-05,2]
[421289135,1777354246265,-286.48046823,9.8e-05,2]
[421289136,1777354246275,-152.0,9.809e-05,7]
[421289137,1777354246284,-152.0,9.819e-05,7]
[421289138,1777354246293,-578.20924308,9.846e-05,2]
[421289139,1777354246302,-1428.38747117,9.846e-05,2]
[421289140,1777354246311,-1193.55938617,9.846e-05,2]
[421289141,1777354246323,-1206.21377672,9.846e-05,2]
[421289144,1777354246662,-5346.92997571,9.846e-05,2]
[421289145,1777354246674,-1805.46472687,9.846e-05,2]
[421289146,1777354246684,-209.40437684,9.846e-05,2]
[421289147,1777354246693,-151.0,9.846e-05,2]
[421289148,1777354246702,-174.61919141,9.846e-05,2]
[421289149,1777354246712,-151.0,9.846e-05,2]
[421289150,1777354246721,-1039.0,9.862e-05,2]
[421289151,1777354246730,-1533.0,9.873e-05,2]
[421289152,1777354246740,-153.41503265,9.873e-05,2]
[421289153,1777354246749,-1533.0,9.873e-05,2]
[421289154,1777354246758,-1533.0,9.873e-05,2]
[421289155,1777354246770,-1533.0,9.873e-05,2]
[421289156,1777354246779,-962.94526413,9.873e-05,2]
[421289157,1777354246788,-154.61681712,9.873e-05,2]
[421289158,1777354246798,-180.0,9.873e-05,3]
[421289159,1777354246807,-500.0,9.873e-05,2]
[421289160,1777354246816,-192.0,9.873e-05,3]
[421289161,1777354246826,-1230.0,9.873e-05,3]
[421289162,1777354246835,-300.0,9.873e-05,2]
[421289163,1777354246844,-157.0,9.873e-05,3]
[421289164,1777354246853,-158.05481345,9.878e-05,2]
[421289165,1777354246862,-300.0,9.892e-05,2]
[421289166,1777354246871,-2010.0,9.9e-05,2]
[421289167,1777354246881,-5877.55331929,9.901e-05,2]
[421289168,1777354246893,-151.0,9.901e-05,2]
[421289169,1777354246903,-185.06007223,9.945e-05,2]
[421289177,1777354400313,-277.0,9.845e-05,2]
[421289178,1777354400342,-344.752932,9.845e-05,2]
[421289179,1777354400375,-1169.0,9.945e-05,3]
[421289180,1777354400404,-578.20924308,9.945e-05,2]
[421289181,1777354400433,-413.09992777,9.945e-05,2]
[421289182,1777354400538,-4435.8857943,9.951e-05,2]
[421289183,1777354855421,-1365.02392931,9.165e-05,2]
[421289184,1777354855443,-7269.96214138,9.165e-05,2]
[421289195,1777355431750,-269.0,9.247e-05,2]
[421289196,1777355431760,-2500.0,9.247e-05,2]
[421289197,1777355431769,-300.0,9.345e-05,2]
[421289198,1777355431779,-300.0,9.345e-05,2]
[421289199,1777355431789,-1200.0,9.345e-05,2]
[421289200,1777355431798,-300.0,9.345e-05,2]
[421289201,1777355431808,-876.7,9.346e-05,2]
[421289202,1777355431818,-150.0,9.346e-05,2]
[421289203,1777355431827,-300.0,9.346e-05,2]
[421289204,1777355431837,-500.0,9.346e-05,2]
[421289205,1777355431846,-500.0,9.346e-05,2]
[421289206,1777355431856,-500.0,9.346e-05,2]
[421289207,1777355431867,-500.0,9.346e-05,2]
[421289208,1777355431876,-500.0,9.346e-05,2]
[421289209,1777355431885,-500.0,9.346e-05,2]
[421289210,1777355431894,-500.0,9.346e-05,2]
[421289211,1777355431904,-500.0,9.346e-05,2]
[421289212,1777355431913,-500.0,9.346e-05,2]
[421289213,1777355431923,-500.0,9.346e-05,2]
[421289214,1777355431933,-500.0,9.346e-05,2]
[421289215,1777355431942,-500.0,9.346e-05,2]
[421289216,1777355431953,-500.0,9.346e-05,2]
[421289218,1777355431963,-500.0,9.346e-05,2]
[421289220,1777355431972,-500.0,9.346e-05,2]
[421289222,1777355431981,-500.0,9.346e-05,2]
[421289224,1777355431991,-500.0,9.346e-05,2]
[421289226,1777355432000,-500.0,9.346e-05,2]
[421289228,1777355432010,-500.0,9.346e-05,2]
[421289230,1777355432019,-500.0,9.346e-05,2]
[421289232,1777355432029,-500.0,9.346e-05,2]
[421289234,1777355432038,-500.0,9.346e-05,2]
[421289236,1777355432048,-500.0,9.346e-05,2]
[421289238,1777355432057,-500.0,9.346e-05,2]
[421289240,1777355432067,-500.0,9.346e-05,2]
[421289242,1777355432077,-500.0,9.346e-05,2]
[421289244,1777355432086,-500.0,9.346e-05,2]
[421289246,1777355432095,-500.0,9.346e-05,2]
[421289248,1777355432105,-500.0,9.346e-05,2]
[421289250,1777355432118,-500.0,9.346e-05,2]
[421289253,1777355432127,-500.0,9.346e-05,2]
[421289255,1777355432137,-500.0,9.346e-05,2]
[421289257,1777355432147,-500.0,9.346e-05,2]
[421289259,1777355432156,-424.21506626,9.346e-05,2]
[421289262,1777355432169,-75.78493374,9.346e-05,2]
[421289264,1777355432180,-500.0,9.346e-05,2]
[421289266,1777355432189,-500.0,9.346e-05,2]
[421289267,1777355432199,-500.0,9.346e-05,2]
[421289268,1777355432209,-500.0,9.346e-05,2]
[421289269,1777355432219,-500.0,9.346e-05,2]
[421289270,1777355432228,-500.0,9.346e-05,2]
[421289271,1777355432238,-500.0,9.346e-05,2]
[421289272,1777355432248,-500.0,9.346e-05,2]
[421289273,1777355432257,-500.0,9.346e-05,2]
[421289274,1777355432267,-500.0,9.346e-05,2]
[421289275,1777355432276,-500.0,9.346e-05,2]
[421289276,1777355432285,-500.0,9.346e-05,2]
[421289277,1777355432295,-500.0,9.346e-05,2]
[421289278,1777355432305,-500.0,9.346e-05,2]
[421289279,1777355432315,-500.0,9.346e-05,2]
[421289280,1777355432324,-500.0,9.346e-05,2]
[421289281,1777355432334,-500.0,9.346e-05,2]
[421289282,1777355432347,-500.0,9.346e-05,2]
[421289283,1777355432356,-500.0,9.346e-05,2]
[421289284,1777355432365,-500.0,9.346e-05,2]
[421289285,1777355432375,-500.0,9.346e-05,2]
[421289286,1777355432384,-500.0,9.346e-05,2]
[421289287,1777355432394,-370.90876155,9.346e-05,2]
[421289288,1777355432403,-500.0,9.346e-05,2]
[421289289,1777355432413,-500.0,9.346e-05,2]
[421289290,1777355432422,-500.0,9.346e-05,2]
[421289291,1777355432432,-500.0,9.346e-05,2]
[421289292,1777355432442,-500.0,9.346e-05,2]
[421289293,1777355432451,-500.0,9.346e-05,2]
[421289294,1777355432461,-170.10106507,9.346e-05,2]
[421289295,1777355432470,-161.62952544,9.346e-05,2]
[421289296,1777355432480,-500.0,9.346e-05,2]
[421289297,1777355432489,-26131.15642078,9.347e-05,2]
[421289298,1777355432848,-209518.91875697,9.347e-05,2]
[421289299,1777355432859,-189422.21265756,9.347e-05,2]
[421289300,1777355432871,-4042.23526469,9.347e-05,2]
[421289301,1777355432880,-650.16934532,9.437e-05,2]
[421289302,1777355432889,-1428.38747117,9.437e-05,2]
[421289303,1777355432899,-171.86544682,9.437e-05,2]
[421289304,1777355432908,-151.0,9.437e-05,2]
[421289305,1777355432917,-174.61919141,9.437e-05,2]
[421289306,1777355432927,-221.8815933,9.437e-05,2]
[421289307,1777355432936,-19098.4277759,9.447e-05,2]
[421289308,1777355437993,-293.46045473,9.447e-05,2]
[421289309,1777355438099,-1304.44533056,9.447e-05,2]
[421289310,1777355438151,-3843.26992721,9.447e-05,2]
[421289311,1777355438205,-77000.00000006,9.447e-05,2]
[421289312,1777355438216,-1000.0,9.447e-05,2]
[421289352,1777355440044,-564.89451154,9.447e-05,2]
[421289353,1777355440055,-151.0,9.492e-05,2]
[421289354,1777355440064,-151.0,9.547e-05,2]
[421289355,1777355440073,-151.0,9.602e-05,2]
[421289356,1777355440082,-667.39844186,9.62e-05,2]
[421289357,1777355440256,-209.30155814,9.62e-05,2]
[421289358,1777355440266,-500.0,9.62e-05,2]
[421289359,1777355440275,-151.0,9.657e-05,2]
[421289360,1777355440284,-152.0,9.674e-05,7]
[421289361,1777355440293,-151.0,9.712e-05,2]
[421289362,1777355440303,-151.0,9.767e-05,2]
[421289363,1777355440312,-151.0,9.822e-05,2]
[421289364,1777355440323,-151.0,9.877e-05,2]
[421289365,1777355440333,-876.7,9.894e-05,2]
[421289366,1777355440342,-500.0,9.894e-05,2]
[421289367,1777355440351,-151.0,9.932e-05,2]
[421289368,1777355440360,-500.0,9.951e-05,2]
[421289369,1777355440369,-182.0,9.951e-05,3]
[421289370,1777355440382,-1110.0,9.951e-05,3]
[421289371,1777355440395,-456.53,9.973e-05,2]
[421289372,1777355440407,-1481.23780761,9.985e-05,2]
[421289373,1777355440419,-181.08010149,9.985e-05,2]
[421289374,1777355440431,-151.0,9.987e-05,2]
[421289375,1777355440443,-462.35341171,9.999e-05,2]
[421289376,1777355440454,-167.85702182,9.999e-05,2]
[421289377,1777355440465,-500.0,9.999e-05,2]
[421289378,1777355440475,-380.3896249,9.999e-05,2]
[421289379,1777355440485,-829.32215079,0.0001,2]
[421289380,1777355440495,-1341.3225456,0.0001,2]
[421289381,1777355440507,-182.41085798,0.0001,2]
[421289382,1777355440518,-3921.83984035,0.0001,2]
[421289383,1777355440529,-184.02235081,0.0001,2]
[421289384,1777355440540,-275.0740031,0.0001,2]
[421289385,1777355440551,-161.0,0.0001,2]
[421289386,1777355440562,-161.0,0.0001,2]
[421289387,1777355440574,-1000.0,0.0001,2]
[421289388,1777355440584,-1000.0,0.0001,2]
[421289389,1777355440596,-1000.0,0.0001,2]
[421289390,1777355440607,-1000.0,0.0001,2]
[421289391,1777355440618,-1000.0,0.0001,2]
[421289392,1777355440629,-1000.0,0.0001,2]
[421289393,1777355440640,-1000.0,0.0001,2]
[421289394,1777355440651,-1000.0,0.0001,2]
[421289395,1777355440662,-1000.0,0.0001,2]
[421289396,1777355440673,-1000.0,0.0001,2]
[421289397,1777355440685,-1000.0,0.0001,2]
[421289398,1777355440695,-1000.0,0.0001,2]
[421289399,1777355440707,-1000.0,0.0001,2]
[421289402,1777355440717,-1000.0,0.0001,2]
[421289404,1777355440727,-1000.0,0.0001,2]
[421289406,1777355440738,-1000.0,0.0001,2]
[421289408,1777355440749,-1000.0,0.0001,2]
[421289410,1777355440759,-1000.0,0.0001,2]
[421289411,1777355440769,-1000.0,0.0001,2]
[421289412,1777355440779,-1000.0,0.0001,2]
[421289413,1777355440789,-1000.0,0.0001,2]
[421289414,1777355440800,-1016.56422578,0.0001,2]
[421289415,1777355440811,-284.81317211,0.0001,2]
[421289416,1777355440821,-200.0,0.0001,2]
[421289417,1777355440832,-500.0,0.0001,2]
[421289418,1777355440843,-151.0,0.0001,2]
[421289419,1777355440855,-500.0,0.0001,2]
[421289420,1777355440866,-151.0,0.0001,2]
[421289421,1777355440877,-500.0,0.0001,2]
[421289422,1777355440888,-151.0,0.0001,2]
[421289423,1777355440899,-500.0,0.0001,2]
[421289424,1777355440909,-151.0,0.0001,2]
[421289425,1777355440921,-500.0,0.0001,2]
[421289426,1777355440932,-151.0,0.0001,2]
[421289427,1777355440944,-500.0,0.0001,2]
[421289428,1777355440956,-151.0,0.0001,2]
[421289429,1777355440969,-151.0,0.0001,2]
[421289430,1777355440980,-500.0,0.0001,2]
[421289431,1777355440990,-151.0,0.0001,2]
[421289432,1777355441000,-151.0,0.0001,2]
[421289433,1777355441009,-500.0,0.0001,2]
[421289434,1777355441020,-151.0,0.0001,2]
[421289435,1777355441029,-151.0,0.0001,2]
[421289436,1777355441039,-500.0,0.0001,2]
[421289437,1777355441049,-151.0,0.0001,2]
[421289438,1777355441063,-151.0,0.0001,2]
[421289439,1777355441075,-514.63226667,0.0001,2]
[421289440,1777355441085,-151.0,0.0001,2]
[421289441,1777355441095,-1.30694754,0.0001,2]
[421289442,1777355441109,-149.69305246,0.0001,2]
[421289443,1777355441120,-151.0,0.0001,2]
[421289444,1777355441131,-151.0,0.0001,2]
[421289445,1777355441142,-151.0,0.0001,2]
[421289446,1777355441154,-151.0,0.0001,2]
[421289447,1777355441165,-151.0,0.0001,2]
[421289448,1777355441176,-151.0,0.0001,2]
[421289449,1777355441186,-151.0,0.0001,2]
[421289450,1777355441197,-500.0,0.0001,2]
[421289451,1777355441208,-151.0,0.0001,2]
[421289452,1777355441219,-500.0,0.0001,2]
[421289453,1777355441229,-151.0,0.0001,2]
[421289454,1777355441238,-500.0,0.0001,2]
[421289455,1777355441249,-151.0,0.0001,2]
[421289456,1777355441258,-500.0,0.0001,2]
[421289457,1777355441268,-151.0,0.0001,2]
[421289458,1777355441279,-500.0,0.0001,2]
[421289459,1777355441293,-151.0,0.0001,2]
[421289460,1777355441304,-151.0,0.0001,2]
[421289461,1777355441314,-151.0,0.0001,2]
[421289462,1777355441325,-500.0,0.0001,2]
[421289463,1777355441335,-151.0,0.0001,2]
[421289464,1777355441346,-500.0,0.0001,2]
[421289465,1777355441357,-151.0,0.0001,2]
[421289466,1777355441367,-500.0,0.0001,2]
[421289467,1777355441378,-500.0,0.0001,2]
[421289468,1777355441389,-512.7688424,0.0001,2]
[421289469,1777355441399,-2000.0,0.0001,2]
[421289470,1777355441409,-2000.0,0.0001,2]
[421289471,1777355441420,-2000.0,0.0001,2]
[421289472,1777355441430,-2000.0,0.0001,2]
[421289473,1777355441440,-1395.06278859,0.0001,2]
[421289474,1777355441453,-574.744,0.0001,2]
[421289478,1777355443244,-30.19321141,0.0001,2]
[421289479,1777355443256,-275.62000315,0.0001,2]
[421289480,1777355443270,-1724.37999685,0.0001,2]
[421289481,1777355443282,-241.13223422,0.0001,2]
[421289482,1777355443293,-241.13223422,0.0001,2]
[421289483,1777355443304,-241.13223422,0.0001,2]
[421289484,1777355443315,-206.30550233,0.0001,2]
[421289485,1777355443326,-151.0,0.0001,2]
[421289486,1777355443337,-600.0,0.00010024,2]
[421289487,1777355443348,-155.326,0.00010078,2]
[421289488,1777355443358,-1000.0,0.000101,2]
[421289489,1777355443368,-134.52247043,0.000101,3]
[421289490,1777355443381,-865.47752957,0.000101,3]
[421289491,1777355443393,-1000.0,0.000101,4]
[421289492,1777355443404,-1005.6,0.000101,5]
[421289493,1777355443415,-262.15419696,0.000101,2]
[421289494,1777355443426,-876.7,0.00010168,2]
[421289495,1777355443438,-630.58670586,0.00010168,2]
[421289496,1777355443448,-551.49275587,0.00010172,2]
[421289497,1777355443459,-5000.0,0.00010172,2]
[421289498,1777355443470,-319.5697892,0.00010172,2]
[421289499,1777355443482,-1233.39212599,0.00010204,2]
[421289500,1777355443493,-183.299406,0.00010204,2]
[421289501,1777355443504,-183.299406,0.00010204,2]
[421289502,1777355443514,-183.299406,0.00010204,2]
[421289503,1777355443525,-183.299406,0.00010204,2]
[421289504,1777355443536,-656.673552,0.00010204,2]
[421289505,1777355443547,-656.673552,0.00010204,2]
[421289506,1777355443558,-656.673552,0.00010204,2]
[421289507,1777355443569,-656.673552,0.00010204,2]
[421289508,1777355443579,-1534.210849,0.00010204,2]
[421289509,1777355443589,-1534.210849,0.00010204,2]
[421289510,1777355443600,-1534.210849,0.00010204,2]
[421289511,1777355443610,-1534.210849,0.00010204,2]
[421289512,1777355443620,-151.0,0.00010257,2]
[421289513,1777355443631,-150.0,0.00010258,2]
[421289514,1777355443642,-150.0,0.00010258,2]
[421289515,1777355443653,-150.16229376,0.00010258,2]
[421289516,1777355443663,-150.0,0.00010258,2]
[421289517,1777355443673,-150.0,0.00010258,2]
[421289518,1777355443685,-150.0,0.00010258,2]
[421289519,1777355443696,-150.0,0.00010258,2]
[421289520,1777355443707,-150.0,0.00010258,2]
[421289521,1777355443717,-150.0,0.00010258,2]
[421289522,1777355443728,-150.12769934,0.00010258,2]
[421289523,1777355443738,-150.0,0.00010258,2]
[421289524,1777355443748,-150.0,0.00010258,2]
[421289525,1777355443759,-150.0,0.00010267,2]
[421289526,1777355443769,-150.0,0.00010274,2]
[421289527,1777355443779,-5000.0,0.00010277,2]
[421289528,1777355443789,-250.0,0.00010277,2]
[421289529,1777355443799,-5000.0,0.00010278,2]
[421289530,1777355443810,-250.0,0.00010278,2]
[421289531,1777355443820,-1971.10435561,0.00010278,2]
[421289532,1777355443831,-151.0,0.0001028,2]
[421289533,1777355443841,-151.0,0.0001028,2]
[421289534,1777355443852,-155.586719,0.0001028,2]
[421289535,1777355443863,-151.0,0.0001028,2]
[421289536,1777355443875,-155.586719,0.0001028,2]
[421289537,1777355443885,-151.0,0.0001028,2]
[421289538,1777355443896,-155.586719,0.0001028,2]
[421289539,1777355443906,-155.586719,0.0001028,2]
[421289540,1777355443917,-1680.0,0.0001028,2]
[421289541,1777355443927,-420.0,0.0001028,2]
[421289542,1777355443939,-420.0,0.0001028,2]
[421289543,1777355443950,-255.0,0.00010281,2]
[421289544,1777355443961,-420.0,0.00010281,2]
[421289545,1777355443971,-309.76025099,0.00010286,2]
[421289546,1777355443981,-150.0,0.00010291,2]
[421289547,1777355443992,-150.0,0.00010307,2]
[421289548,1777355444003,-351.22845105,0.0001032,2]
[421289549,1777355444013,-150.0,0.00010324,2]
[421289550,1777355444023,-150.0,0.0001034,2]
[421289551,1777355444033,-771.68990769,0.00010352,2]
[421289552,1777355444043,-440.5422189,0.00010352,2]
[421289553,1777355444054,-152.43804012,0.00010352,2]
[421289554,1777355444064,-150.0,0.00010357,2]
[421289555,1777355444075,-12806.414104,0.00010361,2]
[421289556,1777355444084,-150.0,0.00010361,2]
[421289557,1777355444095,-150.0,0.00010373,2]
[421289558,1777355444105,-150.0,0.00010384,2]
[421289559,1777355444115,-150.0,0.0001039,2]
[421289560,1777355444126,-150.0,0.00010406,2]
[421289561,1777355444136,-150.0,0.00010423,2]
[421289562,1777355444146,-150.0,0.00010439,2]
[421289563,1777355444156,-876.7,0.00010442,2]
[421289564,1777355444166,-150.0,0.00010447,2]
[421289565,1777355444176,-150.0,0.00010456,2]
[421289566,1777355444187,-150.0,0.00010465,2]
[421289567,1777355444197,-150.0,0.00010472,2]
[421289568,1777355444207,-150.0,0.00010489,2]
[421289569,1777355444218,-161.16,0.000105,2]
[421289570,1777355444228,-5529.0,0.000105,5]
[421289571,1777355444238,-1000.0,0.000105,2]
[421289572,1777355444248,-313.0,0.000105,2]
[421289573,1777355444258,-201.0,0.000105,2]
[421289574,1777355444268,-307.0,0.000105,2]
[421289575,1777355444279,-150.0,0.00010505,2]
[421289576,1777355444289,-150.0,0.00010511,2]
[421289577,1777355444300,-150.0,0.00010522,2]
[421289578,1777355444311,-187.78006525,0.00010533,2]
[421289579,1777355444321,-150.0,0.00010538,2]
[421289580,1777355444331,-150.0,0.00010542,2]
[421289581,1777355444341,-200.0,0.00010548,2]
[421289582,1777355444351,-150.0,0.00010555,2]
[421289583,1777355444362,-150.0,0.00010568,2]
[421289584,1777355444372,-150.0,0.00010571,2]
[421289585,1777355444382,-1534.210849,0.00010572,2]
[421289586,1777355444392,-1534.210849,0.00010572,2]
[421289587,1777355444402,-1534.210849,0.00010572,2]
[421289588,1777355444413,-1534.210849,0.00010572,2]
[421289589,1777355444423,-9561.540555,0.00010572,2]
[421289590,1777355444433,-8021.030361,0.00010572,2]
[421289591,1777355444443,-11720.381174,0.00010572,2]
[421289592,1777355444453,-24876.547103,0.00010572,2]
[421289593,1777355444464,-150.0,0.00010588,2]
[421289594,1777355444474,-150.0,0.00010604,2]
[421289595,1777355444484,-150.0,0.00010621,2]
[421289596,1777355444495,-150.0,0.00010637,2]
[421289597,1777355444505,-150.0,0.00010637,2]
[421289598,1777355444515,-150.0,0.00010637,2]
[421289599,1777355444946,-150.0,0.00010654,2]
[421289600,1777355444971,-150.0,0.0001067,2]
[421289601,1777355444985,-150.0,0.00010672,2]
[421289602,1777355444994,-150.0,0.00010687,2]
[421289603,1777355445004,-23380.02934049,0.000107,2]
[421289604,1777355445013,-183.299406,0.000107,2]
[421289605,1777355445022,-183.299406,0.000107,2]
[421289606,1777355445032,-183.299406,0.000107,2]
[421289607,1777355445040,-183.299406,0.000107,2]
[421289608,1777355445050,-656.673552,0.000107,2]
[421289609,1777355445060,-656.673552,0.000107,2]
[421289610,1777355445069,-656.673552,0.000107,2]
[421289611,1777355445078,-656.673552,0.000107,2]
[421289612,1777355445087,-150.0,0.00010704,2]
[421289613,1777355445096,-876.7,0.00010716,2]
[421289614,1777355445106,-150.0,0.0001072,2]
[421289615,1777355445115,-150.0,0.00010737,2]
[421289616,1777355445125,-151.0,0.00010737,2]
[421289617,1777355445134,-150.0,0.00010753,2]
[421289618,1777355445143,-5000.0,0.00010759,2]
[421289619,1777355445152,-150.0,0.00010764,2]
[421289620,1777355445161,-150.0,0.0001077,2]
[421289621,1777355445170,-250.0,0.00010776,2]
[421289622,1777355445179,-150.0,0.00010776,2]
[421289623,1777355445189,-3532.0,0.00010777,2]
[421289624,1777355445198,-1350.0,0.00010777,2]
[421289625,1777355445208,-1109.757,0.00010777,2]
[421289626,1777355445217,-626.753,0.00010777,2]
[421289627,1777355445226,-1272.852,0.00010777,2]
[421289628,1777355445235,-1613.329,0.00010777,2]
[421289629,1777355445253,-6035.0,0.00010777,2]
[421289630,1777355445265,-151.0,0.0001078,2]
[421289631,1777355445275,-151.0,0.0001078,2]
[421289632,1777355445285,-155.586719,0.0001078,2]
[421289633,1777355445295,-151.0,0.0001078,2]
[421289634,1777355445304,-155.586719,0.0001078,2]
[421289635,1777355445315,-151.0,0.0001078,2]
[421289636,1777355445324,-155.586719,0.0001078,2]